bitfinex/quotes_ETHUSD_20240907
["timestamp","ask_amount","ask_price","bid_price","bid_amount"]
[1725716783392,3.73818249,2290.9,2290.8,4.36528]
[1725716783566,3.0,2291.0,2290.9,8.73018]
[1725716783778,3.73818249,2291.2,2291.0,4.36488]
[1725716784070,6.73818249,2291.1,2291.0,4.36488]
[1725716784249,4.65240074,2291.1,2290.8,4.3652]
[1725716784451,3.73818249,2290.9,2290.8,4.3652]
[1725716784967,6.73818249,2290.9,2290.8,4.3652]
[1725716786270,6.73818249,2290.9,2290.7,4.36544]
[1725716786474,3.0,2290.8,2290.7,4.36544]
[1725716787401,3.0,2290.8,2290.7,8.73091]
[1725716787915,3.0,2291.0,2290.9,4.36498]
[1725716788376,3.0,2291.0,2290.7,8.73074]
[1725716788705,3.73818249,2290.9,2290.7,8.73074]
[1725716788922,3.0,2290.8,2290.7,4.3653]
[1725716789917,3.0,2290.8,2290.6,8.73107]
[1725716790219,3.73818249,2290.7,2290.6,4.36553]
[1725716790418,6.73818249,2290.7,2290.6,4.36553]
[1725716791124,6.73818249,2290.7,2290.2,4.36633]
[1725716791125,7.41200074,2290.7,2290.2,4.36633]
[1725716791272,6.73818249,2290.7,2290.6,4.36566]
[1725716791668,6.73818249,2290.7,2290.6,8.73132]
[1725716792412,6.73818249,2290.7,2290.6,4.36566]
[1725716792718,6.73818249,2290.7,2290.6,0.35502089]
[1725716792874,6.73818249,2290.7,2290.6,4.72068089]
[1725716793822,6.73818249,2290.7,2290.6,9.08634089]
[1725716794144,7.27,2291.4,2291.3,4.36433]
[1725716794434,3.73818249,2291.5,2291.4,4.36414]
[1725716794794,3.73818249,2291.5,2291.4,0.35420144]
[1725716795208,3.73818249,2291.5,2291.1,4.3646]
[1725716795398,6.66849,2291.7,2291.1,4.3646]
[1725716795399,2.3049,2291.7,2291.4,0.35420144]
[1725716795598,2.3049,2291.7,2291.1,4.3646]
[1725716795599,3.73818249,2291.5,2291.1,4.3646]
[1725716795915,3.73818249,2291.3,2290.9,4.80236]
[1725716796118,3.73818249,2291.3,2291.0,4.36489]
[1725716796320,4.36397,2291.5,2290.7,11.11026]
[1725716796321,3.73818249,2291.1,2290.7,11.11026]
[1725716796507,3.0,2291.0,2290.8,4.36516]
[1725716796708,3.0,2291.0,2290.7,4.3653]
[1725716796912,3.0,2291.0,2290.7,8.73065]
[1725716797106,3.0,2291.0,2290.7,4.3653]
[1725716797333,3.73818249,2290.9,2290.7,4.3653]
[1725716797512,3.0,2290.8,2290.7,4.3653]
[1725716798543,0.67381825,2291.0,2290.6,0.4374]
[1725716798544,2.3049,2290.9,2290.6,4.80294]
[1725716798695,9.04308249,2290.9,2290.6,4.80294]
[1725716799342,9.04308249,2290.9,2290.5,4.36574]
[1725716799343,3.73818249,2290.7,2290.3,4.36607]
[1725716799542,3.0,2290.6,2290.3,4.36607]
[1725716799895,3.0,2290.6,2290.4,4.36603]
[1725716800509,3.73818249,2290.5,2290.2,4.36632]
[1725716800710,3.73818249,2290.5,2290.3,4.36623]
[1725716801153,3.73818249,2290.5,2290.2,4.36632]
[1725716801350,3.73818249,2290.3,2290.0,4.36669]
[1725716801553,2.3049,2290.4,2290.0,4.36669]
[1725716801783,5.3049,2290.4,2290.0,4.36669]
[1725716801980,5.3049,2290.4,2290.0,8.73338]
[1725716802244,3.0,2290.4,2290.3,4.36624]
[1725716802689,3.0,2290.4,2290.2,4.36628]
[1725716803183,3.73818249,2290.3,2290.1,4.36647]
[1725716803558,3.73818249,2290.3,2289.7,2.3796]
[1725716803559,3.73818249,2290.3,2290.0,4.36671]
[1725716804173,3.73818249,2290.3,2290.0,8.73342]
[1725716804682,3.73818249,2290.3,2290.1,4.3666]
[1725716804915,3.73818249,2290.3,2290.0,4.36671]
[1725716805057,3.73818249,2290.1,2288.8,6.74852]
[1725716805394,3.0,2290.0,2289.8,4.36709]
[1725716805594,3.0,2290.1,2289.8,4.36709]
[1725716805746,3.0,2290.1,2289.7,4.36734]
[1725716805747,4.18456726,2290.1,2289.7,4.36734]
[1725716805950,3.73818249,2290.0,2289.9,0.35685783]
[1725716806294,3.73818249,2290.0,2289.8,4.36708]
[1725716806295,6.73818249,2290.0,2289.8,4.36708]
[1725716806585,4.18456726,2290.1,2289.9,4.72385783]
[1725716806882,4.18456726,2290.1,2289.9,0.35685783]
[1725716807062,4.53045747,2290.0,2289.9,0.35685783]
[1725716807378,7.53045747,2290.0,2289.7,8.73454]
[1725716807588,4.53045747,2290.0,2289.9,0.35684185]
[1725716807778,7.53045747,2290.0,2289.8,4.36713]
[1725716807957,4.53045747,2290.0,2289.9,0.35684185]
[1725716808159,7.53045747,2290.0,2289.8,4.36708]
[1725716808361,4.53045747,2290.0,2289.9,0.35684185]
[1725716808732,6.73818249,2290.0,2289.9,4.72384185]
[1725716808985,3.0,2290.0,2289.9,4.72384185]
[1725716809185,3.73818249,2290.0,2289.9,4.72384185]
[1725716809395,6.73818249,2290.0,2289.9,0.35684185]
[1725716810188,6.73818249,2290.0,2289.6,4.36744]
[1725716810403,3.73818249,2289.8,2289.6,4.36744]
[1725716811146,3.73818249,2289.8,2289.5,4.36767]
[1725716811494,3.73818249,2289.8,2289.6,4.36755]
[1725716811653,3.73818249,2289.8,2289.6,8.7351]
[1725716811854,3.73818249,2289.8,2289.7,0.35716482]
[1725716812094,3.0,2289.8,2289.7,9.09192482]
[1725716812294,3.0,2289.9,2289.8,4.36719]
[1725716812536,3.0,2289.9,2289.7,9.09182482]
[1725716812689,3.0,2289.9,2289.8,0.35711923]
[1725716813711,6.01341825,2289.9,2289.8,0.35711923]
[1725716814274,10.38041825,2289.9,2289.4,4.3679]
[1725716814474,3.73818249,2289.6,2289.5,0.35790346]
[1725716816327,3.73818249,2289.8,2289.5,0.35790346]
[1725716816491,3.0,2289.9,2289.8,4.36719]
[1725716816697,3.73818249,2290.1,2289.8,4.72481279]
[1725716817002,3.73818249,2289.9,2289.8,0.35762279]
[1725716817205,6.73818249,2289.9,2289.8,0.35762279]
[1725716817410,6.73818249,2289.9,2289.5,4.36764]
[1725716817411,9.07778249,2289.9,2289.5,4.36764]
[1725716817608,10.42224274,2289.9,2289.8,0.35767076]
[1725716817815,10.42224274,2289.9,2289.3,4.36797]
[1725716817816,14.78934274,2289.9,2289.3,4.36797]
[1725716818020,3.73818249,2289.6,2289.4,4.36786]
[1725716818315,3.73818249,2289.6,2289.3,8.73602]
[1725716818623,3.73818249,2289.6,2289.4,4.36795]
[1725716819128,3.73818249,2289.6,2289.3,8.63601]
[1725716819416,3.73818249,2289.6,2289.3,4.26797]
[1725716819713,4.47398582,2289.6,2289.3,8.63602]
[1725716820026,4.47398582,2289.6,2289.3,4.26797]
[1725716820399,3.73818249,2289.4,2289.0,4.36869]
[1725716820604,2.3396,2289.5,2288.9,4.36872]
[1725716820605,3.73818249,2289.2,2288.9,4.36872]
[1725716820807,3.73818249,2289.2,2288.9,8.73751]
[1725716821116,3.73818249,2289.4,2289.3,4.36814]
[1725716821288,6.73818249,2289.4,2288.9,8.73759]
[1725716821494,6.73818249,2289.4,2288.9,4.36872]
[1725716821797,2.3396,2289.3,2288.9,4.36872]
[1725716822002,2.3396,2289.3,2289.0,4.36862]
[1725716822242,3.73818249,2289.2,2288.9,4.36872]
[1725716822394,3.73818249,2289.0,2288.6,4.36936]
[1725716822586,3.0,2288.9,2288.7,8.73845]
[1725716822827,3.0,2288.9,2288.8,4.3691]
[1725716823341,3.0,2289.1,2289.0,4.36871]
[1725716823499,3.73818249,2289.6,2289.4,8.7359]
[1725716823702,3.73818249,2289.8,2289.4,4.36786]
[1725716824017,3.73818249,2289.8,2289.3,2.3104]
[1725716824018,3.73818249,2289.8,2289.5,8.73521]
[1725716824324,3.73818249,2289.8,2288.8,4.36907]
[1725716824325,3.73818249,2289.6,2289.0,2.3104]
[1725716824526,3.73818249,2289.5,2289.4,4.36794]
[1725716824734,3.73818249,2289.7,2289.6,8.73504]
[1725716825024,3.73818249,2289.9,2289.8,4.36719]
[1725716825196,3.73818249,2289.9,2289.7,4.36737]
[1725716825527,3.73818249,2289.9,2289.8,4.36719]
[1725716825834,3.73818249,2289.9,2289.7,4.36724]
[1725716826149,3.73818249,2289.9,2289.7,8.73446]
[1725716826302,3.0,2289.8,2289.7,8.73446]
[1725716826623,3.0,2289.8,2289.7,4.72548003]
[1725716827193,3.0,2289.8,2289.7,9.09286003]
[1725716827392,3.73818249,2289.9,2289.8,4.36719]
[1725716827609,3.73818249,2289.9,2289.7,4.72563003]
[1725716827832,3.73818249,2289.9,2289.8,0.35816649]
[1725716828451,3.73818249,2289.9,2289.6,8.73487]
[1725716828759,6.73818249,2289.9,2289.7,4.72561003]
[1725716829133,6.73818249,2289.9,2289.7,0.35826003]
[1725716829315,8.08262974,2289.9,2289.7,0.35826003]
[1725716829665,2.3396,2289.7,2289.3,4.36813]
[1725716829947,3.73818249,2289.6,2289.3,8.73626]
[1725716830144,3.0,2289.5,2289.3,8.73617]
[1725716830351,3.0,2289.5,2289.3,4.36804]
[1725716830662,3.73818249,2289.6,2289.1,4.3684]
[1725716830663,3.73818249,2289.6,2289.1,8.73674]
[1725716830945,5.08269974,2289.6,2289.1,4.36834]
[1725716831108,5.08269974,2289.6,2289.1,8.73677]
[1725716831334,5.08269974,2289.6,2289.2,4.36821]
[1725716831536,3.73818249,2289.6,2289.2,4.36821]
[1725716831863,3.73818249,2289.6,2289.2,8.73644]
[1725716832042,3.73818249,2289.6,2289.3,4.36814]
[1725716832224,3.73818249,2289.6,2289.4,4.36783]
[1725716832628,3.73818249,2289.6,2289.3,4.36814]
[1725716832826,3.73818249,2289.6,2289.1,8.73686]
[1725716832827,5.08267974,2289.6,2289.1,8.73686]
[1725716833128,5.08267974,2289.6,2289.2,4.36829]
[1725716833930,5.08267974,2289.6,2289.3,4.36814]
[1725716834130,3.73818249,2289.6,2289.3,4.36814]
[1725716834368,3.0,2289.8,2289.6,4.36745]
[1725716834531,3.0,2289.8,2289.7,8.73476]
[1725716835068,3.0,2289.8,2289.7,4.72558406]
[1725716835770,3.0,2289.8,2289.7,9.09296406]
[1725716836076,3.73818249,2290.2,2289.9,4.36699]
[1725716836475,3.73818249,2290.2,2290.0,4.72463344]
[1725716836969,3.73818249,2290.2,2290.1,4.36662]
[1725716837277,3.73818249,2290.2,2290.1,0.35782991]
[1725716837578,3.73818249,2290.2,2290.1,4.36662]
[1725716837733,3.73818249,2290.2,2290.1,4.72370636]
[1725716837933,3.73818249,2290.5,2290.2,4.36638]
[1725716838308,12.51755987,2290.8,2290.2,4.36638]
[1725716838309,3.73818249,2290.7,2290.3,4.36622]
[1725716838428,2.272574,2290.9,2290.5,4.36584]
[1725716838429,3.73818249,2290.9,2290.5,4.36584]
[1725716838633,3.73818249,2290.9,2290.7,4.36545]
[1725716839073,3.73818249,2290.9,2290.8,0.35609626]
[1725716839442,5.55396899,2291.3,2290.8,4.36515]
[1725716839646,3.73818249,2291.3,2291.0,4.3649]
[1725716839831,3.73818249,2291.3,2290.8,0.35609626]
[1725716839832,3.73818249,2291.1,2290.8,0.35609626]
[1725716840042,3.73818249,2291.1,2290.7,4.36533]
[1725716840244,3.73818249,2291.1,2290.8,4.36515]
[1725716840548,3.73818249,2291.1,2290.7,8.73067]
[1725716840856,3.73818249,2291.1,2290.7,4.36533]
[1725716841258,3.73818249,2291.1,2290.7,8.73069]
[1725716841462,3.73818249,2291.1,2290.7,4.36533]
[1725716841665,3.73818249,2291.1,2290.8,0.35583261]
[1725716842050,3.73818249,2291.1,2290.7,8.7307]
[1725716842246,3.73818249,2291.1,2290.9,0.35553148]
[1725716842461,3.73818249,2291.1,2290.8,0.35562494]
[1725716842663,3.73818249,2291.1,2291.0,0.35543803]
[1725716842862,3.73818249,2291.1,2290.9,0.35553148]
[1725716843067,3.73818249,2291.1,2291.0,0.35543803]
[1725716843286,4.77802781,2291.1,2291.0,0.35543803]
[1725716843594,4.77802781,2291.1,2290.7,4.36533]
[1725716843952,4.77802781,2291.1,2290.8,0.35562494]
[1725716844181,4.77802781,2291.1,2290.7,4.36533]
[1725716844392,4.77802781,2291.1,2290.9,0.35553148]
[1725716844599,1.05045177,2291.0,2290.7,4.36533]
[1725716845394,8.10338249,2290.9,2290.4,4.366]
[1725716845599,8.10338249,2290.9,2290.1,2.8591]
[1725716845600,3.73818249,2290.6,2290.1,4.36648]
[1725716845747,4.27998117,2290.6,2290.2,4.36641]
[1725716845947,4.36586,2290.5,2289.9,4.36689]
[1725716846153,3.73818249,2290.2,2289.8,4.36707]
[1725716846382,3.73818249,2290.2,2290.0,4.3668]
[1725716846557,3.73818249,2290.4,2290.0,4.3668]
[1725716846777,3.0,2290.3,2290.0,8.73349]
[1725716846985,3.0,2290.3,2290.0,4.36669]
[1725716847283,3.0,2290.3,2290.0,8.7334]
[1725716847606,3.0,2290.3,2290.0,8.6334]
[1725716848697,3.73818249,2290.2,2289.9,4.36691]
[1725716848898,4.50540783,2290.2,2289.8,4.36703]
[1725716849405,4.50540783,2290.2,2289.8,8.73411]
[1725716849572,4.50540783,2290.2,2289.8,4.36703]
[1725716849776,1.18716578,2290.1,2289.8,4.36703]
[1725716849976,1.18716578,2290.1,2289.6,8.73487]
[1725716850177,1.18716578,2290.1,2289.7,4.36737]
[1725716850763,3.73818249,2290.0,2289.5,4.36775]
[1725716850959,3.73818249,2290.0,2289.6,4.36746]
[1725716851162,0.67770465,2290.0,2289.7,4.36735]
[1725716851462,3.0,2290.0,2289.9,4.367]
[1725716851661,4.18716578,2290.1,2289.9,4.367]
[1725716851858,4.18716578,2290.1,2289.9,0.34437449]
[1725716852085,3.0,2290.0,2289.9,0.34437449]
[1725716852296,3.73818249,2290.0,2289.7,4.36726]
[1725716852599,6.06828249,2290.0,2289.8,0.34446803]
[1725716852909,4.367,2289.9,2289.8,0.34446803]
[1725716853088,6.06828249,2290.0,2289.5,4.36776]
[1725716853265,10.43513249,2290.0,2289.8,0.34446803]
[1725716853462,6.06828249,2290.0,2289.5,4.36766]
[1725716853766,1.46221783,2289.9,2289.6,4.36743]
[1725716853966,1.46221783,2289.9,2289.5,4.36766]
[1725716854293,1.46221783,2289.9,2289.5,8.73531]
[1725716854477,1.46221783,2289.9,2289.5,4.36765]
[1725716855118,3.73818249,2289.7,2289.3,4.36801]
[1725716855769,3.73818249,2289.7,2289.3,8.73606]
[1725716856298,3.73818249,2289.7,2289.3,4.36801]
[1725716856506,4.65496554,2289.7,2289.3,4.36801]
[1725716856681,4.65496554,2289.7,2289.4,4.71310994]
[1725716857708,1.46221783,2289.9,2289.6,4.36749]
[1725716858011,4.46221783,2289.9,2289.7,0.34600677]
[1725716858567,3.0,2289.9,2289.7,4.71324677]
[1725716858899,5.3301,2290.0,2289.7,0.34600677]
[1725716859403,3.0,2290.0,2289.7,0.34600677]
[1725716859620,3.0,2290.0,2289.8,4.36708]
[1725716859838,3.0,2290.0,2289.8,4.71299323]
[1725716860102,3.81000224,2290.0,2289.8,0.34591323]
[1725716861578,3.81000224,2290.0,2289.8,4.71310323]
[1725716861911,3.81000224,2290.0,2289.8,4.71301323]
[1725716862085,3.0,2290.0,2289.8,4.71301323]
[1725716862404,3.0,2290.0,2289.8,4.71299323]
[1725716862608,3.0,2290.0,2289.9,8.734]
[1725716862781,3.0,2290.0,2289.9,4.71281969]
[1725716863413,3.0,2290.0,2289.9,0.34581969]
[1725716863609,3.67381825,2290.0,2289.9,0.34581969]
[1725716864774,3.67381825,2290.0,2289.8,4.36709]
[1725716864976,3.67381825,2290.0,2289.9,0.34248635]
[1725716865400,3.67381825,2290.0,2289.9,4.70948635]
[1725716865619,4.36606,2290.4,2289.9,4.70948635]
[1725716865620,1.36183987,2290.4,2290.3,8.73248]
[1725716865912,9.6001,2290.8,2290.5,4.36574]
[1725716865913,7.43012236,2290.8,2290.5,4.36574]
[1725716866115,6.06828249,2290.8,2290.5,4.36574]
[1725716866334,6.06828249,2290.8,2290.6,0.34153792]
[1725716866484,9.22772325,2290.8,2290.6,0.34153792]
[1725716866826,7.86588338,2290.8,2290.7,0.34142856]
[1725716866986,3.73818249,2290.8,2290.6,4.36557]
[1725716867201,3.73818249,2290.8,2290.7,0.34111889]
[1725716867412,3.73818249,2290.8,2290.5,4.36584]
[1725716867593,3.73818249,2290.8,2290.7,0.34111889]
[1725716867917,3.73818249,2290.8,2290.5,4.36584]
[1725716868101,3.73818249,2290.8,2290.7,0.34111889]
[1725716868429,3.73818249,2290.8,2290.7,0.34095219]
[1725716868584,3.73818249,2290.8,2290.5,4.36584]
[1725716868776,3.73818249,2290.8,2290.7,0.34095219]
[1725716868982,6.73818249,2290.8,2290.5,4.36584]
[1725716869224,6.73818249,2290.8,2290.7,0.34095219]
[1725716869386,6.73818249,2290.8,2290.5,4.36584]
[1725716869585,6.73818249,2290.8,2290.7,0.34095219]
[1725716869817,9.76110725,2290.8,2290.3,4.36622]
[1725716870018,3.0,2290.7,2290.5,4.36583]
[1725716870294,3.0,2290.7,2290.4,0.34123264]
[1725716870498,3.0,2290.7,2290.6,0.34104567]
[1725716870722,3.0,2290.7,2290.5,0.34025776]
[1725716870723,4.36183987,2290.7,2290.5,0.34025776]
[1725716871020,3.0,2290.7,2290.6,0.34016428]
[1725716871227,3.0,2290.7,2290.5,4.3658]
[1725716871393,4.36183987,2290.8,2290.6,0.34019603]
[1725716871599,4.36183987,2290.8,2290.4,4.36593]
[1725716871802,6.06828249,2290.6,2290.2,4.3663]
[1725716872125,6.06828249,2290.6,2290.0,4.36663]
[1725716872126,3.73818249,2290.4,2290.0,4.36663]
[1725716872339,8.10425249,2290.4,2289.9,4.36698]
[1725716872500,12.47044249,2290.4,2289.9,4.36698]
[1725716872701,8.10425249,2290.4,2289.9,4.36698]
[1725716873002,9.72045173,2290.4,2289.9,4.36698]
[1725716873196,9.72045173,2290.4,2290.0,4.3668]
[1725716873197,5.35438173,2290.4,2290.0,4.3668]
[1725716873816,5.35438173,2290.4,2290.0,8.73351]
[1725716874201,9.72043173,2290.4,2290.0,4.36671]
[1725716877163,9.72043173,2290.4,2289.9,4.36688]
[1725716877337,3.73818249,2290.2,2289.8,6.67078]
[1725716877538,3.73818249,2290.2,2289.9,4.36691]
[1725716878265,3.73818249,2290.2,2289.6,0.4374]
[1725716878266,3.73818249,2290.0,2289.6,4.36755]
[1725716879630,3.73818249,2290.0,2289.7,4.36736]
[1725716880367,5.23344773,2290.0,2289.5,4.36757]
[1725716880863,6.5952876,2290.0,2289.6,4.36745]
[1725716881044,3.73818249,2290.0,2289.7,4.36728]
[1725716881242,3.73818249,2290.0,2289.8,4.36703]
[1725716881442,3.0,2290.1,2290.0,4.36681]
[1725716881975,1.36183987,2290.4,2290.3,4.36624]
[1725716882180,1.36183987,2290.6,2290.4,4.36596]
[1725716882474,5.10002236,2290.7,2290.4,4.36596]
[1725716882655,6.56409865,2290.7,2290.4,4.36596]
[1725716883376,3.0,2290.6,2290.4,4.36596]
[1725716884674,3.0,2290.6,2290.3,8.73248]
[1725716885164,3.0,2290.6,2290.4,4.36604]
[1725716885569,3.0,2290.6,2290.5,4.36585]
[1725716885900,1.36183987,2290.8,2290.6,4.36566]
[1725716886802,1.8157865,2290.8,2290.7,0.3407139]
[1725716886983,8.01084991,2290.8,2290.4,4.36603]
[1725716887167,6.19506341,2290.8,2290.7,0.3407139]
[1725716887367,6.19506341,2290.8,2290.4,4.36603]
[1725716887368,9.19506341,2290.8,2290.4,4.36603]
[1725716887609,4.36651025,2290.7,2290.4,4.36603]
[1725716887900,4.36651025,2290.7,2290.5,0.34086117]
[1725716888069,4.36651025,2290.7,2290.6,4.36566]
[1725716888273,1.36651025,2290.7,2290.6,4.70642769]
[1725716888589,5.10469274,2290.8,2290.6,4.70642769]
[1725716889193,5.10469274,2290.8,2290.7,4.36547]
[1725716889394,8.10469274,2290.8,2290.7,4.70613628]
[1725716889906,8.10469274,2290.8,2290.7,0.34066628]
[1725716891084,8.10469274,2290.8,2290.7,4.70613628]
[1725716892831,8.10469274,2290.8,2290.7,0.34066628]
[1725716893526,8.10469274,2290.8,2290.7,4.70613628]
[1725716893698,8.10469274,2290.8,2290.7,0.34066628]
[1725716894608,8.10469274,2290.8,2290.7,4.70613628]
[1725716895128,5.10469274,2291.0,2290.8,4.36528]
[1725716895335,3.0,2290.9,2290.8,4.36528]
[1725716896524,3.0,2290.9,2290.8,8.73056]
[1725716896728,1.36651025,2291.0,2290.6,2.3926]
[1725716897034,1.36651025,2291.1,2291.0,4.3649]
[1725716897329,1.36651025,2291.3,2291.1,4.36471]
[1725716898630,4.36651025,2291.3,2291.1,4.36471]
[1725716899540,4.36651025,2291.3,2291.0,4.3649]
[1725716899692,4.36651025,2291.3,2291.2,4.36452]
[1725716900236,3.0,2291.3,2291.2,4.36452]
[1725716901099,3.0,2291.3,2291.1,4.36468]
[1725716901295,4.36651025,2291.3,2291.1,8.72929]
[1725716901508,4.36651025,2291.3,2291.1,8.72922]
[1725716901802,4.36651025,2291.3,2291.2,0.33927816]
[1725716902116,5.55396899,2291.4,2291.2,0.33927816]
[1725716902117,1.36651025,2291.4,2291.3,8.72866]
[1725716902431,5.10469274,2291.8,2291.5,4.36385]
[1725716902600,5.10469274,2291.8,2291.6,4.36367]
[1725716902934,3.73818249,2291.8,2291.6,4.70232855]
[1725716903295,5.10469274,2291.8,2291.6,4.70232855]
[1725716903495,3.73818249,2291.8,2291.7,4.36357]
[1725716903700,6.73818249,2291.8,2291.7,4.36357]
[1725716903936,6.73818249,2291.8,2291.7,4.70213515]
[1725716904634,3.0,2291.8,2291.7,4.70213515]
[1725716904838,3.0,2291.9,2291.8,4.36338]
[1725716905338,2.95,2291.9,2291.8,4.70140763]
[1725716906303,2.95,2291.9,2291.8,4.36338]
[1725716906607,2.95,2291.9,2291.8,8.72676]
[1725716906809,3.73818249,2292.0,2291.9,4.36319]
[1725716907348,3.73818249,2292.0,2291.9,4.70030725]
[1725716907547,3.76101025,2292.3,2292.0,4.36285]
[1725716907548,3.73818249,2292.2,2292.0,4.36285]
[1725716907707,3.73818249,2292.2,2291.9,4.70030725]
[1725716907909,3.73818249,2292.2,2292.1,0.33693052]
[1725716908115,3.73818249,2292.2,2292.1,4.36281]
[1725716908347,3.73818249,2292.2,2292.1,4.69974052]
[1725716908543,6.73818249,2292.2,2292.1,4.69974052]
[1725716911769,3.73818249,2292.4,2292.3,4.36243]
[1725716912073,6.73818249,2292.4,2292.3,4.69917382]
[1725716912274,3.73818249,2292.6,2292.3,4.69917382]
[1725716912558,3.73818249,2292.6,2292.4,4.36213]
[1725716912924,3.73818249,2292.6,2292.5,0.33631933]
[1725716916843,15.18380074,2292.6,2292.5,0.33631933]
[1725716917049,15.18380074,2292.6,2291.9,0.4374]
[1725716917050,6.711,2292.1,2291.9,0.4374]
[1725716917379,6.711,2292.1,2291.6,4.36368]
[1725716917380,3.73818249,2292.0,2291.6,4.36368]
[1725716917942,3.73818249,2292.0,2291.6,8.72731]
[1725716918769,3.73818249,2292.0,2291.7,4.36354]
[1725716920677,3.73818249,2292.0,2291.6,8.72729]
[1725716920842,3.73818249,2292.0,2291.6,8.7273]
[1725716921247,3.73818249,2292.0,2291.7,4.36355]
[1725716921644,3.73818249,2292.0,2291.6,8.72727]
[1725716922185,3.73818249,2292.0,2291.7,4.36355]
[1725716924752,3.73818249,2292.0,2291.8,0.31419647]
[1725716925152,3.73818249,2292.0,2291.8,4.36337]
[1725716925352,8.10081249,2292.2,2291.9,0.3141031]
[1725716925558,3.0,2292.1,2291.9,0.3141031]
[1725716926389,3.73818249,2292.0,2291.9,0.3141031]
[1725716926603,3.73818249,2292.0,2291.7,4.36355]
[1725716926966,3.73818249,2292.0,2291.8,0.31419647]
[1725716927393,3.73818249,2292.0,2291.7,4.36355]
[1725716927606,3.0,2292.1,2291.9,0.3141031]
[1725716927755,3.0,2292.1,2291.8,4.67743647]
[1725716927967,3.0,2292.1,2292.0,0.31400973]
[1725716928168,3.0,2292.1,2291.9,0.3141031]
[1725716928489,3.0,2292.1,2292.0,0.31400973]
[1725716928673,3.0,2292.1,2291.8,4.36324]
[1725716929011,3.0,2292.1,2292.0,0.31400973]
[1725716929307,3.0,2292.1,2292.0,0.31424606]
[1725716929308,8.70771525,2292.1,2292.0,0.31424606]
[1725716929510,4.34487525,2292.1,2291.7,4.36344]
[1725716929672,4.34487525,2292.1,2292.0,0.31424606]
[1725716929673,3.0,2292.1,2292.0,0.31424606]
[1725716930178,3.0,2292.1,2291.8,4.36335]
[1725716930397,3.0,2292.1,2292.0,0.31424606]
[1725716930598,3.0,2292.1,2291.9,0.31433943]
[1725716930797,3.73818249,2292.2,2292.0,0.31424606]
[1725716930981,3.09938545,2292.6,2292.3,4.36234]
[1725716930982,2.80478121,2292.6,2292.3,4.36234]
[1725716931313,2.3481,2292.6,2292.3,4.36234]
[1725716931627,3.73818249,2292.7,2292.4,0.31379388]
[1725716932111,3.73818249,2292.7,2292.5,0.31359026]
[1725716932313,3.73818249,2292.7,2292.4,4.36206]
[1725716932613,3.73818249,2292.7,2292.6,0.31349694]
[1725716932937,6.73818249,2292.7,2292.4,4.36206]
[1725716933123,6.73818249,2292.7,2292.6,0.31332365]
[1725716933295,6.73818249,2292.7,2292.5,4.36202]
[1725716933496,6.73818249,2292.7,2292.6,0.31332365]
[1725716934489,6.73818249,2292.7,2292.4,4.36206]
[1725716934693,6.73818249,2292.7,2292.6,0.31332365]
[1725716934892,6.73818249,2292.7,2292.5,4.36199]
[1725716935139,6.73818249,2292.7,2292.6,0.31332365]
[1725716936833,7.41200074,2292.7,2292.6,0.31332365]
[1725716937503,7.41200074,2292.7,2292.3,4.36239]
[1725716937710,7.41200074,2292.7,2292.6,0.31332365]
[1725716937907,7.41200074,2292.7,2292.4,4.36223]
[1725716938134,8.6625265,2293.0,2292.8,4.36139]
[1725716938135,1.8157865,2293.0,2292.8,4.36139]
[1725716938345,4.8157865,2293.0,2292.8,4.36139]
[1725716938548,3.0,2293.0,2292.9,0.31296499]
[1725716938995,3.0,2293.0,2292.8,8.72278]
[1725716939193,1.82312632,2293.2,2292.9,4.36128]
[1725716939406,5.10469274,2293.3,2293.1,4.3609]
[1725716939608,1.36651025,2293.4,2293.2,4.67306829]
[1725716939899,7.59019274,2293.5,2293.3,4.36047]
[1725716940123,7.59019274,2293.5,2293.3,4.67227429]
[1725716940325,7.59019274,2293.5,2293.4,4.36033]
[1725716940326,5.10469274,2293.5,2293.4,4.36033]
[1725716940511,5.10469274,2293.5,2293.4,0.31171104]
[1725716940512,3.73818249,2293.5,2293.4,0.31171104]
[1725716940817,4.43023041,2293.5,2293.4,0.31171104]
[1725716941134,4.43023041,2293.5,2293.2,4.36067]
[1725716941135,5.79674066,2293.5,2293.2,4.36067]
[1725716941310,5.79674066,2293.5,2293.4,0.31171104]
[1725716941493,5.79674066,2293.5,2293.1,4.36075]
[1725716941696,5.79674066,2293.5,2293.4,0.31171104]
[1725716941940,5.79674066,2293.5,2293.1,4.36075]
[1725716942123,4.43023041,2293.5,2293.1,4.36075]
[1725716942325,4.43023041,2293.5,2293.2,0.31189755]
[1725716942533,3.73818249,2293.3,2293.2,0.31189755]
[1725716943238,3.73818249,2293.3,2293.0,4.36106]
[1725716943443,3.73818249,2293.3,2293.2,0.31131509]
[1725716943815,3.73818249,2293.3,2293.1,4.3609]
[1725716944316,3.73818249,2293.3,2293.2,0.31136231]
[1725716945227,3.73818249,2293.3,2293.0,4.36109]
[1725716945544,3.73818249,2293.3,2293.1,0.31145558]
[1725716947024,3.73818249,2293.5,2293.2,4.36071]
[1725716947225,3.73818249,2293.5,2293.3,4.3605]
[1725716947449,3.73818249,2293.5,2293.3,4.67176904]
[1725716948103,5.10469274,2293.7,2293.4,4.36033]
[1725716948346,6.63443158,2293.9,2293.6,4.35983]
[1725716948347,1.36651025,2293.9,2293.6,4.35983]
[1725716948516,1.36651025,2293.9,2293.5,4.36014]
[1725716948719,5.10469274,2294.0,2293.7,0.31077805]
[1725716948916,5.10469274,2294.0,2293.6,4.67070128]
[1725716949251,5.10469274,2294.0,2293.8,0.31068483]
[1725716949444,1.81240292,2294.0,2293.7,4.67052805]
[1725716949646,1.81240292,2294.0,2293.8,4.35957]
[1725716949647,3.0,2293.9,2293.8,4.35957]
[1725716950301,5.10469274,2294.4,2294.0,4.35919]
[1725716950546,7.59019274,2294.6,2294.3,4.3586]
[1725716950706,3.73818249,2294.6,2294.2,4.35881]
[1725716951042,5.11455741,2294.6,2294.2,4.35871]
[1725716951243,5.11455741,2294.6,2294.2,4.3587]
[1725716951615,3.73818249,2294.4,2294.0,4.79708]
[1725716951834,3.73818249,2294.4,2292.9,7.3611]
[1725716951835,3.73818249,2294.2,2293.5,2.4023]